[Event "EYCC Open U8 2018"]
[Site "Riga"]
[Date "2018.08.23"]
[Round "4"]
[White "Uskov, Artem"]
[Black "Averin, Nikolay"]
[Result "0-1"]
[ECO "D51"]
[WhiteElo "1320"]
[BlackElo "1438"]
[Annotator "NA RC"]
[PlyCount "132"]
[EventDate "2018.08.20"]
[EventType "swiss"]
[EventCountry "LAT"]
[SourceTitle "playchess.com"]
[Source "ChessBase"]
[SourceQuality "1"]
[TimeControl "40/5400+30:1800+30"]

1. d4 {[%emt 0:00:00]} d5 {[%emt 0:00:00]} 2. c4 {[%emt 0:00:00]} e6 {[%emt 0:00:00]} 3. Nc3 {[%emt 0:00:00]} Nf6 {[%emt 0:00:00]} 4. Bg5 {[%emt 0:00:23]} Nbd7 {[%emt 0:00:00]} 5. e3 {[%emt 0:00:12]} c6 {[%emt 0:00:00]} 6. cxd5 {[%emt 0:00:15]} exd5 {[%emt 0:00:00]} 7. Bd3 {[%emt 0:01:31]} Bd6 {[%emt 0:00:00]} 8. Qc2 {[%emt 0:00:45]} Nf8 {[%emt 0:00:01]} 9. Nf3 {[%emt 0:00:48]} Ng6 {[%emt 0:00:28]} 10. O-O {[%emt 0:02:50]} O-O {[%emt 0:00:12]} 11. Rab1 {[%emt 0:00:38]} h6 {[%emt 0:01:26]} 12. Bxg6 {[%emt 0:00:17]} fxg6 {[%emt 0:00:10]} 13. Bh4 {[%emt 0:01:04]} Bf5 {[%emt 0:00:48]} 14. Qb3 {[%emt 0:00:39]} Bxb1 {[%emt 0:02:10]} 15. Rxb1 {[%emt 0:00:06]} Qb6 {[%emt 0:32:47]} 16. Qc2 {[%emt 0:01:02]} g5 {[%emt 0:03:54]} 17. Bg3 {[%emt 0:00:15]} Bxg3 {[%emt 0:10:28]} 18. hxg3 {[%emt 0:00:15]} Rae8 {[%emt 0:01:36]} 19. Ne5 {[%emt 0:03:48]} Qd8 {[%emt 0:04:13]} 20. b4 {[%emt 0:01:27]} Nd7 {[%emt 0:03:37]} 21. Nxd7 {[%emt 0:02:11]} Qxd7 {[%emt 0:00:15]} 22. a4 {[%emt 0:00:00]} Rb8 {[%emt 0:19:55]} 23. b5 {[%emt 0:04:24]} Rfc8 {[%emt 0:03:13]} 24. Qb3 {[%emt 0:03:40]} Kh8 {[%emt 0:01:30]} 25. Qa3 {[%emt 0:05:00]} Qc7 {[%emt 0:12:41]} 26. Qc5 {[%emt 0:02:11]} cxb5 {[%emt 0:01:43]} 27. Qxc7 {[%emt 0:00:08]} Rxc7 {[%emt 0:00:01]} 28. Nxb5 {[%emt 0:00:16]} Rd7 {[%emt 0:01:09]} 29. a5 {[%emt 0:01:25]} Ra8 {[%emt 0:00:51]} 30. Nc3 {[%emt 0:00:13]} Kg8 {[%emt 0:00:47]} 31. Na4 {[%emt 0:00:07]} g6 {[%emt 0:00:36]} 32. Nc5 {[%emt 0:00:04]} Re7 {[%emt 0:00:09]} 33. Nxb7 {[%emt 0:00:24]} Rb8 {[%emt 0:00:19]} 34. a6 {[%emt 0:00:05]} Rc7 {[%emt 0:00:07]} 35. Rb5 {[%emt 0:00:07]} Rd7 {[%emt 0:00:13]} 36. Kf1 {[%emt 0:00:13]} Kf8 {[%emt 0:01:13]} 37. Ke2 {[%emt 0:00:11]} Ke7 {[%emt 0:00:11]} 38. Kd3 {[%emt 0:00:08]} g4 {[%emt 0:00:27]} 39. f3 {[%emt 0:00:00]} h5 {[%emt 0:00:00]} 40. e4 {[%emt 0:00:00]} gxf3 {[%emt 0:00:00]} 41. gxf3 {[%emt 0:00:24]} Rf8 {[%emt 0:14:31]} 42. f4 {[%emt 0:00:16]} h4 {[%emt 0:01:17]} 43. gxh4 {[%emt 0:00:45]} Rxf4 {[%emt 0:00:50]} 44. Nc5 {[%emt 0:00:03]} dxe4+ {[%emt 0:00:40]} 45. Ke3 {[%emt 0:00:05]} Rxh4 {[%emt 0:00:34]} 46. Rb7 {[%emt 0:00:33]} Rh3+ {[%emt 0:01:02]} 47. Ke2 {[%emt 0:00:09]} Rh2+ {[%emt 0:01:25]} 48. Ke3 {[%emt 0:00:19]} Rxb7 {[%emt 0:01:03]} 49. axb7 {[%emt 0:00:07]} Rb2 {[%emt 0:00:05]} 50. Kxe4 {[%emt 0:00:08]} Kd6 {[%emt 0:01:38]} 51. Kd3 {[%emt 0:00:25]} Kc7 {[%emt 0:12:42]} 52. Ne6+ {[%emt 0:02:12]} Kxb7 {[%emt 0:00:57]} 53. d5 {[%emt 0:00:44]} Rb6 {[%emt 0:00:49]} 54. Nc5+ {[%emt 0:00:31]} Kc7 {[%emt 0:00:33]} 55. Kd4 {[%emt 0:00:24]} g5 {[%emt 0:00:55]} 56. Ke5 {[%emt 0:00:03]} g4 {[%emt 0:00:38]} 57. Ne4 {[%emt 0:00:12]} Kd7 {[%emt 0:00:47]} 58. Nc5+ {[%emt 0:01:00]} Ke7 {[%emt 0:00:12]} 59. Ne4 {[%emt 0:00:05]} Rg6 {[%emt 0:00:56]} 60. d6+ {[%emt 0:00:06]} Kd8 {[%emt 0:00:34]} 61. Ng3 {[%emt 0:01:07]} a5 {[%emt 0:00:13]} 62. Nf5 {[%emt 0:00:21]} g3 {[%emt 0:00:38]} 63. Nd4 {[%emt 0:00:13]} g2 {[%emt 0:00:33]} 64. Nf3 {[%emt 0:00:37]} g1=Q {[%emt 0:00:08]} 65. Nxg1 {[%emt 0:00:08]} Rxg1 {[%emt 0:00:01]} 66. Kd4 {[%emt 0:00:08]} Rb1 {[%emt 0:00:04]} 0-1

[Event "EYCC Open U8 2018"]
[Site "Riga"]
[Date "2018.08.24"]
[Round "5"]
[White "Udipi, Kala Kishan"]
[Black "Uskov, Artem"]
[Result "0-1"]
[ECO "D46"]
[WhiteElo "1756"]
[BlackElo "1320"]
[Annotator "NA"]
[PlyCount "122"]
[EventDate "2018.08.20"]
[EventType "swiss"]
[EventCountry "LAT"]
[SourceTitle "playchess.com"]
[Source "ChessBase"]
[SourceQuality "1"]
[TimeControl "40/5400+30:1800+30"]

1. d4 {[%emt 0:00:00]} d5 {[%emt 0:00:00]} 2. Nf3 {[%emt 0:00:00]} Nf6 {[%emt 0:01:01]} 3. c4 {[%emt 0:01:28]} e6 {[%emt 0:02:29]} 4. Nc3 {[%emt 0:03:27]} c6 {[%emt 0:03:31]} 5. e3 {[%emt 0:05:21]} Nbd7 {[%emt 0:03:15]} 6. Bd3 {[%emt 0:01:24]} Bd6 {[%emt 0:03:14]} 7. cxd5 {[%emt 0:03:50]} exd5 {[%emt 0:07:00]} 8. O-O {[%emt 0:08:09]} O-O {[%emt 0:08:44]} 9. Qc2 {[%emt 0:05:09]} h6 {[%emt 0:05:46]} 10. b3 {[%emt 0:02:47]} Nb6 {[%emt 0:03:28]} 11. a4 {[%emt 0:06:25]} a5 {[%emt 0:06:17]} 12. Ba3 {[%emt 0:03:14]} Be6 {[%emt 0:06:15]} 13. Bxd6 {[%emt 0:04:45]} Qxd6 {[%emt 0:00:37]} 14. Ne2 {[%emt 0:05:31]} Nbd7 {[%emt 0:03:54]} 15. Rac1 {[%emt 0:06:33]} Rfc8 {[%emt 0:03:29]} 16. Qb2 {[%emt 0:10:17]} b6 {[%emt 0:01:22]} 17. Rc2 {[%emt 0:06:58]} c5 {[%emt 0:00:41]} 18. Rfc1 {[%emt 0:00:55]} Rc7 {[%emt 0:04:57]} 19. Nf4 {[%emt 0:02:58]} Rac8 {[%emt 0:04:00]} 20. Nxe6 {[%emt 0:00:51]} fxe6 {[%emt 0:00:31]} 21. Ba6 {[%emt 0:00:27]} Re8 {[%emt 0:02:07]} 22. Ne5 {[%emt 0:00:39]} Rd8 {[%emt 0:03:11]} 23. Bd3 {[%emt 0:01:32]} Nb8 {[%emt 0:02:13]} 24. Bg6 {[%emt 0:01:21]} Na6 {[%emt 0:02:47]} 25. Qa3 {[%emt 0:02:18]} Nb4 {[%emt 0:01:20]} 26. Rc3 {[%emt 0:00:53]} Rdc8 {[%emt 0:00:23]} 27. h3 {[%emt 0:01:58]} Ne4 {[%emt 0:00:52]} 28. Bxe4 {[%emt 0:00:15]} dxe4 {[%emt 0:00:28]} 29. Qb2 {[%emt 0:01:59]} Qd5 {[%emt 0:01:16]} 30. Qe2 {[%emt 0:01:42]} Nc6 {[%emt 0:01:13]} 31. Nxc6 {[%emt 0:00:50]} Rxc6 {[%emt 0:00:06]} 32. Qc2 {[%emt 0:00:33]} e5 {[%emt 0:00:38]} 33. dxe5 {[%emt 0:00:30]} Qxe5 {[%emt 0:00:07]} 34. Rc4 {[%emt 0:00:28]} Re8 {[%emt 0:00:06]} 35. Qc3 {[%emt 0:01:36]} Rd6 {[%emt 0:00:37]} 36. Qxe5 {[%emt 0:04:27]} Rxe5 {[%emt 0:00:07]} 37. g4 {[%emt 0:00:38]} Rd3 {[%emt 0:00:15]} 38. R1c3 {[%emt 0:00:10]} Red5 {[%emt 0:01:01]} 39. Rc2 {[%emt 0:00:57]} Rxb3 {[%emt 0:01:28]} 40. Rxe4 {[%emt 0:00:00]} Rb4 {[%emt 0:00:00]} 41. Rcc4 {[%emt 0:05:56]} Rd1+ {[%emt 0:01:15]} 42. Kg2 {[%emt 0:00:33]} Rdb1 {[%emt 0:00:11]} 43. Kf3 {[%emt 0:02:04]} Rxc4 {[%emt 0:00:09]} 44. Rxc4 {[%emt 0:00:33]} Rb4 {[%emt 0:00:06]} 45. Rf4 {[%emt 0:00:21]} c4 {[%emt 0:00:29]} 46. e4 {[%emt 0:02:00]} c3 {[%emt 0:00:19]} 47. Ke2 {[%emt 0:00:36]} Rd4 {[%emt 0:00:08]} 48. Rf3 {[%emt 0:00:10]} Rxe4+ {[%emt 0:00:29]} 49. Kd3 {[%emt 0:00:13]} Rxa4 {[%emt 0:00:07]} 50. Rf5 {[%emt 0:00:20]} Rb4 {[%emt 0:01:22]} 51. Kxc3 {[%emt 0:00:12]} b5 {[%emt 0:00:05]} 52. f3 {[%emt 0:00:28]} g6 {[%emt 0:00:19]} 53. Rf6 {[%emt 0:00:30]} Kg7 {[%emt 0:00:09]} 54. Ra6 {[%emt 0:00:11]} Rf4 {[%emt 0:00:27]} 55. Ra7+ {[%emt 0:00:15]} Rf7 {[%emt 0:00:13]} 56. Rxa5 {[%emt 0:00:08]} Rxf3+ {[%emt 0:00:06]} 57. Kd4 {[%emt 0:00:14]} b4 {[%emt 0:00:55]} 58. Rb5 {[%emt 0:00:16]} b3 {[%emt 0:00:43]} 59. Kc4 {[%emt 0:00:12]} Rxh3 {[%emt 0:00:08]} 60. Rxb3 {[%emt 0:00:07]} Rxb3 {[%emt 0:00:05]} 61. Kxb3 {[%emt 0:02:40]} Kf6 {[%emt 0:00:07]} 0-1

[Event "EYCC Open U8 2018"]
[Site "Riga"]
[Date "2018.08.24"]
[Round "5"]
[White "Hajdu, Marton Abris"]
[Black "La Barbera, Manfredi"]
[Result "1-0"]
[ECO "C10"]
[WhiteElo "1694"]
[BlackElo "1212"]
[Annotator "NA"]
[PlyCount "87"]
[EventDate "2018.08.20"]
[EventType "swiss"]
[EventCountry "LAT"]
[SourceTitle "playchess.com"]
[Source "ChessBase"]
[SourceQuality "1"]
[TimeControl "40/5400+30:1800+30"]

1. e4 {[%emt 0:00:00]} e6 {[%emt 0:00:00]} 2. d4 {[%emt 0:00:06]} d5 {[%emt 0:00:00]} 3. Nc3 {[%emt 0:00:05]} dxe4 {[%emt 0:00:00]} 4. Nxe4 {[%emt 0:00:07]} Nd7 {[%emt 0:00:00]} 5. Nf3 {[%emt 0:00:43]} Ngf6 {[%emt 0:00:26]} 6. Bg5 {[%emt 0:01:36]} Be7 {[%emt 0:01:26]} 7. Nxf6+ {[%emt 0:11:43]} Nxf6 {[%emt 0:00:43]} 8. c3 {[%emt 0:05:36]} O-O {[%emt 0:00:32]} 9. Bd3 {[%emt 0:00:25]} b6 {[%emt 0:01:31]} 10. Qc2 {[%emt 0:16:26]} h6 {[%emt 0:00:13]} 11. h4 {[%emt 0:04:25]} Bb7 {[%emt 0:02:23]} 12. O-O-O {[%emt 0:08:15]} a5 {[%emt 0:02:26]} 13. Bxf6 {[%emt 0:01:45]} Bxf6 {[%emt 0:01:03]} 14. Rdg1 {[%emt 0:06:11]} Bxf3 {[%emt 0:04:08]} 15. gxf3 {[%emt 0:00:12]} Bxh4 {[%emt 0:00:17]} 16. Qd2 {[%emt 0:06:36]} Kh8 {[%emt 0:18:53]} 17. Rg4 {[%emt 0:01:29]} g5 {[%emt 0:05:57]} 18. Rhxh4 {[%emt 0:01:08]} Kg7 {[%emt 0:06:38]} 19. Rh1 {[%emt 0:01:02]} f5 {[%emt 0:01:19]} 20. Rg3 {[%emt 0:00:46]} Qe7 {[%emt 0:01:58]} 21. f4 {[%emt 0:01:08]} Kg6 {[%emt 0:02:33]} 22. fxg5 {[%emt 0:01:55]} hxg5 {[%emt 0:01:37]} 23. f4 {[%emt 0:00:05]} g4 {[%emt 0:00:33]} 24. Rxg4+ {[%emt 0:00:05]} Kf6 {[%emt 0:00:48]} 25. Qh2 {[%emt 0:01:35]} Rh8 {[%emt 0:02:01]} 26. Rh4 {[%emt 0:00:07]} Rxh4 {[%emt 0:04:17]} 27. Qxh4+ {[%emt 0:00:07]} Kf7 {[%emt 0:00:15]} 28. Qh7+ {[%emt 0:00:12]} Ke8 {[%emt 0:00:29]} 29. Qg8+ {[%emt 0:00:17]} Qf8 {[%emt 0:00:53]} 30. Qxe6+ {[%emt 0:00:36]} Kd8 {[%emt 0:00:30]} 31. Bxf5 {[%emt 0:00:20]} Qe8 {[%emt 0:00:50]} 32. Qxe8+ {[%emt 0:00:12]} Kxe8 {[%emt 0:00:15]} 33. Rh8+ {[%emt 0:00:08]} Kf7 {[%emt 0:00:21]} 34. Rxa8 {[%emt 0:00:06]} Kf6 {[%emt 0:00:25]} 35. Kd2 {[%emt 0:00:11]} Kxf5 {[%emt 0:00:14]} 36. Ke3 {[%emt 0:00:12]} Ke6 {[%emt 0:00:30]} 37. Ke4 {[%emt 0:00:06]} Kf6 38. f5 {[%emt 0:00:09]} Ke7 {[%emt 0:00:37]} 39. Ke5 {[%emt 0:00:08]} Kf7 {[%emt 0:00:12]} 40. f6 {[%emt 0:00:00]} a4 {[%emt 0:00:00]} 41. Rc8 {[%emt 0:00:15]} c5 {[%emt 0:00:41]} 42. Rc7+ {[%emt 0:00:10]} Kf8 {[%emt 0:00:41]} 43. Ke6 {[%emt 0:00:09]} cxd4 {[%emt 0:00:34]} 44. Rc8# {[%emt 0:00:06]} 1-0

[Event "EYCC Open U8 2018"]
[Site "Riga"]
[Date "2018.08.24"]
[Round "5"]
[White "Averin, Nikolay"]
[Black "Gordeev, Denis"]
[Result "0-1"]
[ECO "B40"]
[WhiteElo "1438"]
[BlackElo "1333"]
[Annotator "NA"]
[PlyCount "132"]
[EventDate "2018.08.20"]
[EventType "swiss"]
[EventCountry "LAT"]
[SourceTitle "playchess.com"]
[Source "ChessBase"]
[SourceQuality "1"]
[TimeControl "40/5400+30:1800+30"]

1. e4 {[%emt 0:00:00]} c5 {[%emt 0:00:00]} 2. Nf3 {[%emt 0:00:00]} e6 {[%emt 0:00:00]} 3. d4 {[%emt 0:00:00]} cxd4 {[%emt 0:00:03]} 4. Nxd4 {[%emt 0:00:00]} Nf6 {[%emt 0:00:33]} 5. Nc3 {[%emt 0:00:15]} Nc6 {[%emt 0:00:27]} 6. Ndb5 {[%emt 0:01:27]} Bc5 {[%emt 0:00:20]} 7. Nd6+ {[%emt 0:05:05]} Ke7 {[%emt 0:00:37]} 8. Nxc8+ {[%emt 0:01:03]} Rxc8 {[%emt 0:00:15]} 9. Bd3 {[%emt 0:00:32]} Qc7 {[%emt 0:00:38]} 10. O-O {[%emt 0:00:54]} Rhd8 {[%emt 0:01:11]} 11. Bg5 {[%emt 0:05:59]} a6 {[%emt 0:03:45]} 12. Bh4 {[%emt 0:03:56]} b5 {[%emt 0:05:37]} 13. a3 {[%emt 0:02:13]} d6 {[%emt 0:06:06]} 14. Re1 {[%emt 0:01:27]} Ne5 {[%emt 0:00:30]} 15. Ne2 {[%emt 0:18:30]} h6 {[%emt 0:03:14]} 16. Bg3 {[%emt 0:01:23]} Nfd7 {[%emt 0:02:53]} 17. Rc1 {[%emt 0:07:25]} Bb6 {[%emt 0:03:37]} 18. c3 {[%emt 0:15:42]} Nc5 {[%emt 0:05:53]} 19. Bb1 {[%emt 0:13:53]} d5 {[%emt 0:04:57]} 20. exd5 {[%emt 0:02:08]} Rxd5 {[%emt 0:03:53]} 21. Nd4 {[%emt 0:00:11]} Ncd7 {[%emt 0:06:52]} 22. Ba2 {[%emt 0:13:45]} Rd6 {[%emt 0:03:54]} 23. Rxe5 {[%emt 0:03:35]} Bxd4 {[%emt 0:03:41]} 24. Rxe6+ {[%emt 0:00:34]} fxe6 {[%emt 0:02:20]} 25. Bxd6+ {[%emt 0:00:07]} Qxd6 {[%emt 0:01:21]} 26. cxd4 {[%emt 0:00:42]} Qxd4 {[%emt 0:01:48]} 27. Qe1 {[%emt 0:00:58]} Rxc1 {[%emt 0:01:51]} 28. Qxc1 {[%emt 0:00:01]} e5 {[%emt 0:00:46]} 29. h3 {[%emt 0:00:16]} b4 {[%emt 0:01:51]} 30. axb4 {[%emt 0:00:32]} Qxb4 {[%emt 0:00:13]} 31. Qc3 {[%emt 0:00:14]} Qxc3 {[%emt 0:03:32]} 32. bxc3 {[%emt 0:00:01]} Nc5 {[%emt 0:00:18]} 33. Bb1 {[%emt 0:00:38]} Kd6 {[%emt 0:01:19]} 34. Kf1 {[%emt 0:00:46]} Na4 {[%emt 0:00:28]} 35. Bd3 {[%emt 0:00:50]} a5 {[%emt 0:01:03]} 36. Ke1 {[%emt 0:00:24]} Nxc3 {[%emt 0:00:22]} 37. Kd2 {[%emt 0:00:07]} Nd5 {[%emt 0:00:10]} 38. Kc1 {[%emt 0:00:43]} Kc5 {[%emt 0:00:39]} 39. Kb2 {[%emt 0:00:28]} Nf4 {[%emt 0:00:56]} 40. Bf1 {[%emt 0:00:00]} Kd4 {[%emt 0:00:00]} 41. Kc2 {[%emt 0:01:14]} e4 {[%emt 0:01:40]} 42. Kb3 {[%emt 0:01:08]} Nd3 {[%emt 0:00:27]} 43. Ka4 {[%emt 0:00:29]} Nxf2 {[%emt 0:00:10]} 44. Kxa5 {[%emt 0:00:14]} Ke3 {[%emt 0:02:08]} 45. Kb5 {[%emt 0:00:48]} Nd3 {[%emt 0:01:30]} 46. Kc4 {[%emt 0:00:18]} Kf2 {[%emt 0:00:16]} 47. Bxd3 {[%emt 0:00:13]} exd3 {[%emt 0:00:06]} 48. Kxd3 {[%emt 0:00:11]} Kxg2 {[%emt 0:00:11]} 49. h4 {[%emt 0:00:24]} Kg3 {[%emt 0:00:12]} 50. h5 {[%emt 0:00:05]} Kg4 {[%emt 0:00:05]} 51. Ke2 {[%emt 0:00:02]} Kxh5 {[%emt 0:00:20]} 52. Kf2 {[%emt 0:00:03]} Kg4 {[%emt 0:00:17]} 53. Kg2 {[%emt 0:00:02]} g5 {[%emt 0:00:21]} 54. Kh2 {[%emt 0:00:08]} Kf3 {[%emt 0:00:17]} 55. Kg1 {[%emt 0:00:05]} Kg3 {[%emt 0:00:10]} 56. Kh1 {[%emt 0:00:02]} Kf2 {[%emt 0:00:14]} 57. Kh2 {[%emt 0:00:03]} g4 {[%emt 0:00:10]} 58. Kh1 {[%emt 0:00:08]} h5 {[%emt 0:00:07]} 59. Kh2 {[%emt 0:00:01]} g3+ {[%emt 0:00:09]} 60. Kh3 {[%emt 0:00:09]} g2 {[%emt 0:00:09]} 61. Kh4 {[%emt 0:00:59]} g1=Q {[%emt 0:00:25]} 62. Kxh5 {[%emt 0:00:08]} Kf3 {[%emt 0:00:11]} 63. Kh6 {[%emt 0:00:02]} Kf4 {[%emt 0:00:11]} 64. Kh7 {[%emt 0:00:01]} Kf5 {[%emt 0:00:12]} 65. Kh8 {[%emt 0:00:01]} Kf6 {[%emt 0:00:13]} 66. Kh7 {[%emt 0:00:08]} Qg7# 0-1

[Event "EYCC Open U8 2018"]
[Site "Riga"]
[Date "2018.08.24"]
[Round "5"]
[White "Motoyama, Wesley Winsen"]
[Black "Azadaliyev, Jahandar"]
[Result "0-1"]
[ECO "B10"]
[WhiteElo "1375"]
[BlackElo "1732"]
[Annotator "NA"]
[PlyCount "50"]
[EventDate "2018.08.20"]
[EventType "swiss"]
[EventCountry "LAT"]
[SourceTitle "playchess.com"]
[Source "ChessBase"]
[SourceQuality "1"]
[TimeControl "40/5400+30:1800+30"]

1. e4 {[%emt 0:00:00]} c6 {[%emt 0:00:00]} 2. Nf3 {[%emt 0:00:44]} d5 {[%emt 0:00:31]} 3. d3 {[%emt 0:01:21]} Bg4 {[%emt 0:08:43]} 4. Nbd2 {[%emt 0:02:16]} e6 {[%emt 0:00:28]} 5. Be2 {[%emt 0:02:46]} Nd7 {[%emt 0:01:27]} 6. exd5 {[%emt 0:03:00]} cxd5 {[%emt 0:00:23]} 7. d4 {[%emt 0:02:11]} Bd6 {[%emt 0:04:53]} 8. O-O {[%emt 0:02:12]} Ngf6 {[%emt 0:00:44]} 9. c4 {[%emt 0:02:58]} O-O {[%emt 0:01:30]} 10. c5 {[%emt 0:01:41]} Bc7 {[%emt 0:02:15]} 11. h3 {[%emt 0:02:46]} Bf5 {[%emt 0:02:44]} 12. Nh4 {[%emt 0:01:27]} Ne4 {[%emt 0:01:05]} 13. Nxf5 {[%emt 0:00:51]} exf5 {[%emt 0:02:01]} 14. Nxe4 {[%emt 0:03:42]} fxe4 {[%emt 0:00:17]} 15. Qb3 {[%emt 0:00:59]} Qc8 {[%emt 0:10:27]} 16. Qxd5 {[%emt 0:00:57]} Nf6 {[%emt 0:00:25]} 17. Qb3 {[%emt 0:01:01]} Rd8 {[%emt 0:01:41]} 18. Be3 {[%emt 0:03:23]} Bb8 {[%emt 0:01:04]} 19. f4 {[%emt 0:10:58]} Nd5 {[%emt 0:02:14]} 20. Bd2 {[%emt 0:00:58]} Qc6 {[%emt 0:02:41]} 21. Bb5 {[%emt 0:05:25]} Qf6 {[%emt 0:00:26]} 22. Kh1 {[%emt 0:13:09]} Bc7 {[%emt 0:01:47]} 23. f5 {[%emt 0:01:17]} Qxd4 {[%emt 0:01:12]} 24. Qc2 {[%emt 0:08:15]} Qe5 {[%emt 0:00:31]} 25. Rae1 {[%emt 0:01:58]} Qh2# {[%emt 0:00:11]} 0-1

[Event "EYCC Open U8 2018"]
[Site "Riga"]
[Date "2018.08.24"]
[Round "5"]
[White "Yasmo, Daniil"]
[Black "Villa Tornero, Alex"]
[Result "1-0"]
[ECO "A46"]
[WhiteElo "1261"]
[BlackElo "1394"]
[Annotator "NA"]
[PlyCount "107"]
[EventDate "2018.08.20"]
[EventType "swiss"]
[EventCountry "LAT"]
[SourceTitle "playchess.com"]
[Source "ChessBase"]
[SourceQuality "1"]
[TimeControl "40/5400+30:1800+30"]

1. d4 {[%emt 0:00:00]} Nf6 {[%emt 0:01:36]} 2. Nf3 {[%emt 0:00:49]} c5 {[%emt 0:01:36]} 3. e3 {[%emt 0:05:02]} d5 {[%emt 0:05:32]} 4. Be2 {[%emt 0:04:39]} Nc6 {[%emt 0:04:44]} 5. O-O {[%emt 0:01:38]} Bf5 {[%emt 0:03:01]} 6. a3 {[%emt 0:03:09]} e6 {[%emt 0:03:44]} 7. dxc5 {[%emt 0:00:33]} Bxc5 {[%emt 0:04:08]} 8. b4 {[%emt 0:01:15]} Be7 {[%emt 0:06:00]} 9. Bb2 {[%emt 0:03:15]} a6 {[%emt 0:05:19]} 10. Nbd2 {[%emt 0:05:40]} O-O {[%emt 0:01:36]} 11. c4 {[%emt 0:01:32]} Ne4 {[%emt 0:07:41]} 12. Nxe4 {[%emt 0:01:28]} dxe4 {[%emt 0:00:47]} 13. Nd4 {[%emt 0:16:28]} Nxd4 {[%emt 0:05:55]} 14. Bxd4 {[%emt 0:00:40]} Bf6 {[%emt 0:01:21]} 15. Bxf6 {[%emt 0:00:34]} Qxf6 {[%emt 0:02:24]} 16. Qb3 {[%emt 0:07:17]} Rfd8 {[%emt 0:05:56]} 17. Rad1 {[%emt 0:04:20]} Qg5 {[%emt 0:03:47]} 18. Kh1 {[%emt 0:01:14]} Rxd1 {[%emt 0:05:40]} 19. Rxd1 {[%emt 0:00:12]} Rd8 {[%emt 0:00:04]} 20. Rxd8+ {[%emt 0:00:36]} Qxd8 {[%emt 0:00:10]} 21. Qd1 {[%emt 0:00:19]} Qxd1+ 22. Bxd1 {[%emt 0:00:06]} Kf8 {[%emt 0:00:21]} 23. h4 {[%emt 0:00:17]} e5 {[%emt 0:01:26]} 24. Bc2 {[%emt 0:01:20]} g6 {[%emt 0:07:36]} 25. c5 {[%emt 0:03:05]} Ke7 {[%emt 0:01:01]} 26. Kg1 {[%emt 0:00:33]} Kd7 {[%emt 0:06:09]} 27. Ba4+ {[%emt 0:00:39]} Kc7 {[%emt 0:00:50]} 28. Kf1 {[%emt 0:01:24]} b6 {[%emt 0:01:21]} 29. cxb6+ {[%emt 0:00:45]} Kxb6 {[%emt 0:00:10]} 30. Ke1 {[%emt 0:01:29]} a5 {[%emt 0:00:38]} 31. Kd2 {[%emt 0:02:05]} axb4 {[%emt 0:01:29]} 32. axb4 {[%emt 0:00:05]} Be6 {[%emt 0:00:48]} 33. Kc3 {[%emt 0:00:47]} f5 {[%emt 0:00:16]} 34. Bb3 {[%emt 0:00:29]} Bd7 {[%emt 0:02:34]} 35. g3 {[%emt 0:01:33]} Kc7 {[%emt 0:07:09]} 36. Bc4 {[%emt 0:10:09]} Kd6 {[%emt 0:00:52]} 37. Ba6 {[%emt 0:01:32]} f4 {[%emt 0:03:19]} 38. gxf4 {[%emt 0:01:54]} exf4 {[%emt 0:00:47]} 39. exf4 {[%emt 0:00:21]} Ke6 {[%emt 0:00:14]} 40. Kd4 {[%emt 0:00:00]} Kf5 {[%emt 0:00:00]} 41. b5 {[%emt 0:05:43]} Bxb5 {[%emt 0:07:30]} 42. Bxb5 {[%emt 0:02:20]} Kxf4 {[%emt 0:03:07]} 43. Be2 {[%emt 0:00:06]} h6 {[%emt 0:01:41]} 44. Bd1 {[%emt 0:00:30]} g5 {[%emt 0:00:19]} 45. hxg5 {[%emt 0:00:12]} hxg5 {[%emt 0:00:07]} 46. Be2 {[%emt 0:00:08]} g4 {[%emt 0:00:49]} 47. Bxg4 {[%emt 0:00:13]} Kxg4 {[%emt 0:00:09]} 48. Kxe4 {[%emt 0:00:14]} Kg5 {[%emt 0:00:06]} 49. Ke5 {[%emt 0:00:19]} Kg6 {[%emt 0:00:14]} 50. f4 {[%emt 0:00:22]} Kf7 {[%emt 0:00:57]} 51. Kf5 {[%emt 0:00:05]} Ke8 {[%emt 0:00:13]} 52. Ke6 {[%emt 0:00:13]} Kf8 {[%emt 0:00:06]} 53. Kf6 {[%emt 0:00:10]} Kg8 {[%emt 0:00:12]} 54. Ke7 {[%emt 0:00:07]} 1-0

[Event "EYCC Open U8 2018"]
[Site "Riga"]
[Date "2018.08.26"]
[Round "6"]
[White "Azadaliyev, Jahandar"]
[Black "Hajdu, Marton Abris"]
[Result "1/2-1/2"]
[ECO "D07"]
[WhiteElo "1732"]
[BlackElo "1694"]
[Annotator "NA"]
[PlyCount "99"]
[EventDate "2018.08.20"]
[EventType "swiss"]
[EventCountry "LAT"]
[SourceTitle "playchess.com"]
[Source "ChessBase"]
[SourceQuality "1"]
[TimeControl "40/5400+30:1800+30"]

1. d4 {[%emt 0:00:00]} d5 {[%emt 0:00:00]} 2. c4 {[%emt 0:00:00]} Nc6 {[%emt 0:00:00]} 3. e3 {[%emt 0:05:37]} e5 {[%emt 0:02:33]} 4. dxe5 {[%emt 0:02:55]} d4 {[%emt 0:01:47]} 5. exd4 {[%emt 0:04:30]} Qxd4 {[%emt 0:07:30]} 6. Qxd4 {[%emt 0:00:21]} Nxd4 {[%emt 0:00:08]} 7. Bd3 {[%emt 0:02:21]} Ne7 {[%emt 0:04:06]} 8. Ne2 {[%emt 0:07:03]} Bf5 {[%emt 0:01:36]} 9. Nxd4 {[%emt 0:04:34]} Bxd3 {[%emt 0:03:53]} 10. Nc3 {[%emt 0:04:53]} Bxc4 {[%emt 0:00:36]} 11. Be3 {[%emt 0:01:32]} O-O-O {[%emt 0:08:01]} 12. b3 {[%emt 0:01:36]} Nd5 {[%emt 0:17:57]} 13. Nxd5 {[%emt 0:01:19]} Bxd5 {[%emt 0:03:17]} 14. O-O {[%emt 0:04:32]} Kb8 {[%emt 0:11:53]} 15. Rfd1 {[%emt 0:04:54]} a6 16. f3 {[%emt 0:14:22]} h6 {[%emt 0:13:48]} 17. Kf2 {[%emt 0:00:53]} g6 {[%emt 0:01:12]} 18. g4 {[%emt 0:03:14]} Bg7 {[%emt 0:01:12]} 19. f4 {[%emt 0:00:15]} h5 {[%emt 0:00:59]} 20. g5 {[%emt 0:03:39]} Rhe8 {[%emt 0:03:47]} 21. Rac1 {[%emt 0:01:22]} Rd7 {[%emt 0:02:22]} 22. Rc2 {[%emt 0:01:24]} Red8 {[%emt 0:00:30]} 23. Rcd2 {[%emt 0:00:38]} Bf8 {[%emt 0:02:02]} 24. Ne2 {[%emt 0:03:16]} Bb4 {[%emt 0:00:29]} 25. Rd3 {[%emt 0:04:12]} Kc8 {[%emt 0:01:37]} 26. Nc3 {[%emt 0:13:20]} Bxc3 {[%emt 0:00:32]} 27. Rxc3 {[%emt 0:00:07]} Bc6 {[%emt 0:00:14]} 28. Rxd7 {[%emt 0:02:25]} Rxd7 {[%emt 0:00:01]} 29. Ke2 {[%emt 0:01:00]} Rd5 {[%emt 0:00:58]} 30. a4 {[%emt 0:00:29]} Kd7 {[%emt 0:00:57]} 31. h3 {[%emt 0:03:13]} Ke6 {[%emt 0:00:51]} 32. Bf2 {[%emt 0:00:59]} Kf5 {[%emt 0:00:55]} 33. Be3 {[%emt 0:00:16]} Rd7 {[%emt 0:02:59]} 34. Bc1 {[%emt 0:03:04]} Bg2 {[%emt 0:01:12]} 35. Bd2 {[%emt 0:01:00]} Bc6 {[%emt 0:00:48]} 36. Bc1 {[%emt 0:00:06]} Rd4 {[%emt 0:00:45]} 37. Bd2 {[%emt 0:00:11]} Rd7 {[%emt 0:00:29]} 38. Bc1 {[%emt 0:00:05]} Bg2 {[%emt 0:00:21]} 39. Rg3 {[%emt 0:01:38]} Be4 {[%emt 0:00:17]} 40. Rc3 {[%emt 0:00:00]} Bd5 {[%emt 0:00:00]} 41. Bd2 {[%emt 0:00:38]} Bc6 {[%emt 0:03:05]} 42. Bc1 {[%emt 0:00:15]} Be4 43. Bd2 {[%emt 0:00:17]} Bg2 {[%emt 0:04:25]} 44. Bc1 {[%emt 0:00:08]} Bd5 {[%emt 0:05:52]} 45. Bd2 {[%emt 0:00:29]} Be4 {[%emt 0:03:23]} 46. Bc1 {[%emt 0:00:24]} Bc6 {[%emt 0:01:49]} 47. Bd2 {[%emt 0:00:03]} Rd4 {[%emt 0:00:40]} 48. Be3 {[%emt 0:02:09]} Rd5 {[%emt 0:02:33]} 49. Bd2 {[%emt 0:00:50]} Rd4 {[%emt 0:01:24]} 50. Be3 {[%emt 0:00:07] Kxe5} 1/2-1/2